bitfinex-derivatives/quotes_BNBF0:USTF0_20250220
["timestamp","ask_amount","ask_price","bid_price","bid_amount"]
[1740031126351,1.09557382,649.22,647.63,0.3088183]
[1740031126555,1.09557382,649.21,647.63,0.3088183]
[1740031126751,1.09557382,649.2,647.63,0.3088183]
[1740031126952,1.09557382,649.19,647.63,0.3088183]
[1740031127150,1.09557382,649.18,647.63,0.3088183]
[1740031127350,1.09557382,649.17,647.63,0.3088183]
[1740031127556,1.09557382,649.16,647.63,0.3088183]
[1740031127852,1.09557382,649.15,647.63,0.3088183]
[1740031128057,1.09557382,649.14,647.63,0.3088183]
[1740031128257,1.09557382,649.13,647.63,0.3088183]
[1740031128460,0.30799556,649.36,647.63,0.3088183]
[1740031128651,1.37834156,649.35,647.63,0.3088183]
[1740031128856,1.37834156,649.34,647.63,0.3088183]
[1740031129151,1.09512871,649.33,647.63,0.3088183]
[1740031129358,1.37834115,649.32,647.63,0.3088183]
[1740031129558,1.37834115,649.31,647.63,0.3088183]
[1740031129754,1.37834115,649.3,647.63,1.45806704]
[1740031129953,1.37834115,649.29,647.63,1.45806704]
[1740031130156,1.37834115,649.28,647.63,1.45806704]
[1740031130356,1.37834115,649.27,647.63,1.45806704]
[1740031130559,1.37834115,649.26,647.63,1.45806704]
[1740031130761,1.37834115,649.25,647.63,1.45806704]
[1740031131054,1.09512871,649.24,647.63,1.45806704]
[1740031131260,1.09512871,649.23,647.63,1.45806704]
[1740031131455,1.09512871,649.22,647.63,1.45806704]
[1740031131759,1.09512871,649.21,647.63,1.45806704]
[1740031131954,1.09512871,649.2,647.63,1.45806704]
[1740031132157,1.09512871,649.19,647.63,1.45806704]
[1740031132455,0.30799556,649.36,647.63,0.3088183]
[1740031132456,1.09512871,649.18,647.63,0.3088183]
[1740031132754,1.09512871,649.17,647.63,0.3088183]
[1740031132960,1.09512871,649.16,647.63,0.3088183]
[1740031133158,1.09512871,649.15,647.63,0.3088183]
[1740031133359,1.09512871,649.14,647.63,0.3088183]
[1740031133556,1.09512871,649.13,647.63,0.3088183]
[1740031133759,1.09512871,649.12,647.63,0.3088183]
[1740031133961,1.09512871,649.11,647.63,0.3088183]
[1740031134261,1.09512871,649.1,647.63,0.3088183]
[1740031134457,1.09512871,649.09,647.63,0.3088183]
[1740031134659,1.09512871,649.08,647.63,0.3088183]
[1740031134961,1.09512871,649.07,647.63,0.3088183]
[1740031135157,1.09512871,649.06,647.63,0.3088183]
[1740031135356,1.09512871,649.05,647.63,0.3088183]
[1740031135556,1.09512871,649.04,647.63,0.3088183]
[1740031135762,1.09512871,649.03,647.63,0.3088183]
[1740031135961,1.09512871,649.02,647.63,0.3088183]
[1740031136162,1.09512871,649.01,647.63,0.3088183]
[1740031136354,1.09512871,649.0,647.63,0.3088183]
[1740031136561,1.09512871,648.99,647.63,0.3088183]
[1740031136860,1.09512871,648.98,647.63,0.3088183]
[1740031137161,1.09512871,648.97,647.63,0.3088183]
[1740031137362,1.09512871,648.96,647.63,0.3088183]
[1740031137560,1.09512871,648.95,647.63,0.3088183]
[1740031137755,1.09512871,648.94,647.63,0.3088183]
[1740031137960,1.09512871,648.93,647.63,0.3088183]
[1740031138262,1.09512871,648.92,647.63,0.3088183]
[1740031138561,1.09512871,648.91,647.63,0.3088183]
[1740031138862,1.09512871,648.9,647.63,0.3088183]
[1740031139061,1.09512871,648.89,647.63,0.3088183]
[1740031139261,1.09512871,648.88,647.63,0.3088183]
[1740031139561,1.09512871,648.87,647.63,0.3088183]
[1740031139762,1.09512871,648.86,647.63,0.3088183]
[1740031139954,1.09512871,648.85,647.63,0.3088183]
[1740031140155,1.09512871,648.84,647.63,0.3088183]
[1740031140360,1.09512871,648.83,647.63,0.3088183]
[1740031140661,0.30799556,649.36,647.63,0.3088183]
[1740031140662,1.09512871,648.82,647.63,0.3088183]
[1740031140861,1.09512871,648.81,647.63,0.3088183]
[1740031141063,1.09512871,648.8,647.63,0.3088183]
[1740031141265,1.09512871,648.79,647.63,0.3088183]
[1740031141564,0.30799556,649.36,647.63,0.3088183]
[1740031141565,1.09512871,648.78,647.63,0.3088183]
[1740031141768,1.09512871,648.77,647.63,0.3088183]
[1740031142065,1.09512871,648.76,647.71,1.14924874]
[1740031142259,1.09512871,648.75,647.73,0.30877062]
[1740031142465,1.09512871,648.74,647.73,0.30877062]
[1740031142659,0.30799556,649.36,647.73,0.30877062]
[1740031142862,1.37964473,649.35,647.73,0.30877062]
[1740031143067,1.37964473,649.34,647.73,0.30877062]
[1740031143260,1.37964473,649.33,647.73,0.30877062]
[1740031143461,1.37964473,649.32,647.73,0.30877062]
[1740031143663,1.09644368,649.31,647.75,1.14924874]
[1740031143862,1.09644368,649.3,647.77,0.30875156]
[1740031144067,1.09644368,649.29,647.77,0.30875156]
[1740031144265,1.09644368,649.28,647.77,0.30875156]
[1740031144459,1.37964436,649.27,647.77,0.30875156]
[1740031144659,1.37964436,649.26,647.77,0.30875156]
[1740031144860,1.09644368,649.25,647.77,0.30875156]
[1740031145166,1.09644368,649.24,647.77,0.30875156]
[1740031145365,1.09644368,649.23,647.77,0.30875156]
[1740031145568,1.09644368,649.22,647.77,0.30875156]
[1740031145866,1.09644368,649.21,647.77,0.30875156]
[1740031146066,1.09644368,649.2,647.77,0.30875156]
[1740031146366,1.09644368,649.19,647.77,0.30875156]
[1740031146560,1.09644368,649.18,647.77,0.30875156]
[1740031146766,1.09644368,649.17,647.87,1.14924874]
[1740031147066,1.09644368,649.16,647.88,0.30869914]
[1740031147266,1.09644368,649.15,647.88,0.30869914]
[1740031147464,0.30799556,649.36,647.88,0.30869914]
[1740031147465,1.09644368,649.14,647.88,0.30869914]
[1740031147665,1.09644368,649.13,647.88,0.30869914]
[1740031147866,1.09644368,649.12,647.88,0.30869914]
[1740031148067,1.09644368,649.11,647.88,0.30869914]
[1740031148267,1.09644368,649.1,647.88,0.30869914]
[1740031148469,1.09644368,649.09,647.88,0.30869914]
[1740031148668,1.09644368,649.08,647.88,0.30869914]
[1740031148868,0.30799556,649.36,647.88,0.30869914]
[1740031148869,1.09644368,649.07,647.93,1.14924874]
[1740031149169,1.09644368,649.06,647.94,0.30867055]
[1740031149366,1.09644368,649.05,647.94,0.30867055]
[1740031149567,1.09644368,649.04,647.94,0.30867055]
[1740031149766,1.09644368,649.03,647.94,0.30867055]
[1740031149962,1.09644368,649.02,647.94,0.30867055]
[1740031150267,1.09644368,649.01,647.94,0.30867055]
[1740031150468,1.09644368,649.0,647.94,0.30867055]
[1740031150668,1.09644368,648.99,647.94,0.30867055]
[1740031150868,1.09644368,648.98,647.94,0.30867055]
[1740031151065,1.09644368,648.97,647.94,0.30867055]
[1740031151268,1.09644368,648.96,647.94,0.30867055]
[1740031151466,1.09644368,648.95,647.94,0.30867055]
[1740031151668,1.09644368,648.94,647.94,0.30867055]
[1740031151864,1.09644368,648.93,647.94,0.30867055]
[1740031152065,1.09644368,648.92,647.94,0.30867055]
[1740031152268,1.09644368,648.91,647.94,0.30867055]
[1740031152465,1.09644368,648.9,647.94,0.30867055]
[1740031152665,1.09644368,648.89,647.94,0.30867055]
[1740031152870,1.09644368,648.88,647.94,0.30867055]
[1740031153065,1.09644368,648.87,647.94,0.30867055]
[1740031153264,1.09644368,648.86,647.94,0.30867055]
[1740031153465,1.09644368,648.85,647.94,0.30867055]
[1740031153671,1.09644368,648.84,647.94,0.30867055]
[1740031153871,1.09644368,648.83,647.94,0.30867055]
[1740031154074,1.09644368,648.82,647.94,0.30867055]
[1740031154269,1.09644368,648.81,647.94,0.30867055]
[1740031154571,1.09644368,648.8,647.94,0.30867055]
[1740031154770,0.30799556,649.36,647.94,0.30867055]
[1740031154771,1.09644368,648.79,647.94,0.30867055]
[1740031154966,0.30799556,649.36,647.94,0.30867055]
[1740031155167,1.09879921,649.35,647.94,0.30867055]
[1740031155368,1.09879921,649.34,647.94,0.30867055]
[1740031155567,1.09879921,649.33,647.94,0.30867055]
[1740031155770,1.09879921,649.32,647.94,0.30867055]
[1740031155970,1.09879921,649.31,647.94,0.30867055]
[1740031156168,1.09879921,649.3,647.94,0.30867055]
[1740031156369,1.09879921,649.29,647.94,0.30867055]
[1740031156573,1.09879921,649.28,647.94,0.30867055]
[1740031156772,1.09879921,649.27,647.94,0.30867055]
[1740031156971,1.09879921,649.26,647.94,0.30867055]
[1740031157170,1.09879921,649.25,647.94,0.30867055]
[1740031157377,1.09879921,649.24,647.94,0.30867055]
[1740031157572,1.09930135,649.23,647.94,0.30867055]
[1740031157778,1.09930135,649.22,647.94,0.30867055]
[1740031157978,1.09930135,649.21,647.94,0.30867055]
[1740031158171,0.30799556,649.36,647.94,0.30867055]
[1740031158172,1.09930135,649.2,647.94,0.30867055]
[1740031158376,1.09930135,649.19,647.94,0.30867055]
[1740031158576,0.30799556,649.36,647.94,0.30867055]
[1740031158577,1.09930135,649.18,647.94,0.30867055]
[1740031158778,1.09930135,649.17,647.94,0.30867055]
[1740031158974,1.09930135,649.16,647.94,0.30867055]
[1740031159177,1.09930135,649.15,647.94,0.30867055]
[1740031159380,1.09930135,649.14,647.94,0.30867055]
[1740031159574,1.09930135,649.13,647.94,0.30867055]
[1740031159774,1.09930135,649.12,647.94,0.30867055]
[1740031159980,1.09930135,649.11,647.94,0.30867055]
[1740031160176,1.09930135,649.1,647.94,0.30867055]
[1740031160380,0.30799556,649.36,647.94,0.30867055]
[1740031160381,1.09930135,649.09,647.94,0.30867055]
[1740031160581,1.09930135,649.08,647.94,0.30867055]
[1740031160775,1.09930135,649.07,647.94,0.30867055]
[1740031160979,1.09930135,649.06,647.94,0.30867055]
[1740031161174,1.09930135,649.05,647.94,0.30867055]
[1740031161378,1.09930135,649.04,647.94,0.30867055]
[1740031161580,1.09930135,649.03,647.94,0.30867055]
[1740031161779,1.09930135,649.02,647.94,0.30867055]
[1740031161980,1.09930135,649.01,647.94,0.30867055]
[1740031162179,1.09930135,649.0,647.94,0.30867055]
[1740031162379,1.09930135,648.99,647.94,0.30867055]
[1740031162584,1.09930135,648.98,647.94,0.30867055]
[1740031162884,1.09930135,648.97,647.94,0.30867055]
[1740031163085,1.09930135,648.96,647.94,0.30867055]
[1740031163287,1.09930135,648.95,647.94,0.30867055]
[1740031163580,1.09930135,648.94,647.94,0.30867055]
[1740031163781,1.09930135,648.93,647.94,0.30867055]
[1740031163986,1.09930135,648.92,647.94,0.30867055]
[1740031164185,1.09930135,648.91,647.94,0.30867055]
[1740031164385,1.09930135,648.9,647.94,0.30867055]
[1740031164585,1.09930135,648.89,647.94,0.30867055]
[1740031164785,1.09930135,648.88,647.94,0.30867055]
[1740031164987,1.09930135,648.87,647.94,0.30867055]
[1740031165180,1.09930135,648.86,647.94,0.30867055]
[1740031165383,1.09930135,648.85,647.94,0.30867055]
[1740031165584,1.09930135,648.84,647.94,0.30867055]
[1740031165785,1.09930135,648.83,647.94,0.30867055]
[1740031165981,1.09930135,648.82,647.94,0.30867055]
[1740031166188,1.09930135,648.81,647.94,0.30867055]
[1740031166389,1.09930135,648.8,647.94,0.30867055]
[1740031166588,1.09930135,648.79,647.94,0.30867055]
[1740031166889,1.09930135,648.78,647.94,0.30867055]
[1740031167088,1.09930135,648.77,647.94,0.30867055]
[1740031167289,0.30799556,649.36,647.94,0.30867055]
[1740031167589,1.09917413,649.35,647.94,0.30867055]
[1740031167789,1.09918979,649.34,647.94,0.30867055]
[1740031167984,1.09918979,649.33,647.94,0.30867055]
[1740031168191,1.09918979,649.32,647.94,0.30867055]
[1740031168488,1.09918979,649.31,647.94,0.30867055]
[1740031168688,1.09918979,649.3,647.94,0.30867055]
[1740031168890,1.09918979,649.29,647.94,0.30867055]
[1740031169088,1.09918979,649.28,647.94,0.30867055]
[1740031169284,1.09918979,649.27,647.94,0.30867055]
[1740031169484,1.09918979,649.26,647.94,0.30867055]
[1740031169688,1.09918979,649.25,647.94,0.30867055]
[1740031169890,1.09918979,649.24,647.94,0.30867055]
[1740031170087,1.09918979,649.23,647.94,0.30867055]
[1740031170293,1.09918979,649.22,647.94,0.30867055]
[1740031170490,1.09918979,649.21,647.94,0.30867055]
[1740031170690,1.09918979,649.2,647.94,0.30867055]
[1740031170886,1.09918979,649.19,647.94,0.30867055]
[1740031171088,1.09918979,649.18,647.94,0.30867055]
[1740031171291,1.09918979,649.17,647.94,0.30867055]
[1740031171491,1.09918979,649.16,647.94,0.30867055]
[1740031171686,1.09918979,649.15,647.94,0.30867055]
[1740031171885,1.09918979,649.14,647.94,0.30867055]
[1740031172089,1.09918979,649.13,647.94,0.30867055]
[1740031172289,1.09918979,649.12,647.94,0.30867055]
[1740031172486,1.09918979,649.11,647.94,0.30867055]
[1740031172787,1.09918979,649.1,647.94,0.30867055]
[1740031172988,1.09918979,649.09,647.94,0.30867055]
[1740031173188,1.09918979,649.08,647.94,0.30867055]
[1740031173391,1.09918979,649.07,647.94,0.30867055]
[1740031173589,1.09918979,649.06,647.94,0.30867055]
[1740031173791,1.09918979,649.05,647.94,0.30867055]
[1740031173988,1.09930268,649.04,647.94,0.30867055]
[1740031174195,1.09930268,649.03,647.94,0.30867055]
[1740031174393,1.09930268,649.02,647.94,0.30867055]
[1740031174591,1.09930268,649.01,647.94,0.30867055]
[1740031174792,1.09930268,649.0,647.94,0.30867055]
[1740031174991,1.09930268,648.99,647.94,0.30867055]
[1740031175189,1.09930268,648.98,647.94,0.30867055]
[1740031175395,0.30799556,649.36,647.94,0.30867055]
[1740031175589,1.09871808,649.35,647.94,0.30867055]
[1740031175790,0.30799556,649.36,647.94,0.30867055]
[1740031175791,1.09871808,649.34,647.94,0.30867055]
[1740031175991,1.09871808,649.33,647.94,0.30867055]
[1740031176195,1.09871808,649.32,647.94,0.30867055]
[1740031176391,1.09871808,649.31,647.94,0.30867055]
[1740031176592,1.09871808,649.3,647.94,0.30867055]
[1740031176795,1.09871808,649.29,647.94,0.30867055]
[1740031176992,1.09871808,649.28,647.94,0.30867055]
[1740031177191,1.09871808,649.27,647.94,0.30867055]
[1740031177393,1.09871808,649.26,647.94,0.30867055]
[1740031177593,1.09871808,649.25,647.94,0.30867055]
[1740031177791,1.09871808,649.24,647.94,0.30867055]
[1740031177992,1.09871808,649.23,647.94,0.30867055]
[1740031178294,1.09871808,649.22,647.94,0.30867055]
[1740031178496,1.09871808,649.21,647.94,0.30867055]
[1740031178695,1.09871808,649.2,647.94,0.30867055]
[1740031178892,1.09871808,649.19,647.94,0.30867055]
[1740031179198,1.09871808,649.18,647.94,0.30867055]
[1740031179398,1.09871808,649.17,647.94,0.30867055]
[1740031179600,1.09871808,649.16,647.94,0.30867055]
[1740031179894,1.09871808,649.15,647.94,0.30867055]
[1740031180199,1.09871808,649.14,647.94,0.30867055]
[1740031180398,1.09871808,649.13,647.94,0.30867055]
[1740031180598,1.09871808,649.12,647.94,0.30867055]
[1740031180795,1.09871808,649.11,647.94,0.30867055]
[1740031181000,1.09871808,649.1,647.94,0.30867055]
[1740031181199,1.09871808,649.09,647.94,0.30867055]
[1740031181499,1.09871808,649.08,647.94,0.30867055]
[1740031181700,1.09871808,649.07,647.94,0.30867055]
[1740031181900,1.09871808,649.06,647.94,0.30867055]
[1740031182199,1.09871808,649.05,647.94,0.30867055]
[1740031182400,1.09871808,649.04,647.94,0.30867055]
[1740031182600,1.09871808,649.03,647.94,0.30867055]
[1740031182799,1.09871808,649.02,647.94,0.30867055]
[1740031183001,1.09871808,649.01,647.94,0.30867055]
[1740031183299,1.09871808,649.0,647.94,0.30867055]
[1740031183493,0.30799556,649.36,647.94,0.30867055]
[1740031183494,1.09871808,648.99,647.94,0.30867055]
[1740031183699,1.09871808,648.98,647.94,0.30867055]
[1740031183898,1.09871808,648.97,647.94,0.30867055]
[1740031184098,0.30799556,649.36,647.94,0.30867055]
[1740031184300,1.09753765,649.35,647.94,0.30867055]
[1740031184503,1.09753765,649.34,647.94,0.30867055]
[1740031184798,1.09753765,649.33,647.94,0.30867055]
[1740031185103,1.09753765,649.32,647.94,0.30867055]
[1740031185298,1.09753765,649.31,647.94,0.30867055]
[1740031185498,1.09753765,649.3,647.94,0.30867055]
[1740031185698,1.09753765,649.29,647.94,0.30867055]
[1740031185896,1.09753765,649.28,647.94,0.30867055]
[1740031186100,1.09765849,649.27,647.94,0.30867055]
[1740031186301,5.48077378,657.08,647.94,0.30867055]
[1740031186302,1.09765849,649.26,648.0,1.14924874]
[1740031186504,1.09765849,649.25,648.02,0.30863244]
[1740031186698,1.09765849,649.24,648.02,0.30863244]
[1740031186903,1.09765849,649.23,648.02,0.30863244]
[1740031187101,1.09765849,649.22,648.02,0.30863244]
[1740031187302,1.09765849,649.21,648.02,0.30863244]
[1740031187502,1.09765849,649.2,648.02,0.30863244]
[1740031187701,1.09765849,649.19,648.02,0.30863244]
[1740031187897,1.09765849,649.18,648.02,0.30863244]
[1740031188095,1.09765849,649.17,648.02,0.30863244]
[1740031188299,1.09765849,649.16,648.02,0.30863244]
[1740031188503,1.09765849,649.15,648.02,0.30863244]
[1740031188698,1.0972917,649.14,648.02,0.30863244]
[1740031188900,1.0972917,649.13,648.02,0.30863244]
[1740031189100,1.0972917,649.12,648.02,0.30863244]
[1740031189301,1.0972917,649.11,648.02,0.30863244]
[1740031189498,1.0972917,649.1,648.02,0.30863244]
[1740031189698,0.30762131,650.15,648.02,0.30863244]
[1740031189901,1.38027247,650.14,648.02,0.30863244]
[1740031190104,1.38027247,650.13,648.02,0.30863244]
[1740031190303,0.30764024,650.11,648.02,0.30863244]
[1740031190605,1.38027247,650.1,648.02,0.30863244]
[1740031190804,0.30765444,650.08,648.02,0.30863244]
[1740031191004,1.38027247,650.07,648.02,0.30863244]
[1740031191205,0.30766864,650.05,648.02,0.30863244]
[1740031191406,1.38027247,650.04,648.02,0.30863244]
[1740031191704,0.30768284,650.02,648.02,0.30863244]
[1740031191904,1.38027247,650.01,648.02,0.30863244]
[1740031192105,0.30769704,649.99,648.02,0.30863244]
[1740031192305,1.38027247,649.98,648.02,0.30863244]
[1740031192502,1.68797897,649.97,648.02,0.30863244]
[1740031192700,1.68798371,649.96,648.02,0.30863244]
[1740031192900,1.68798844,649.95,648.02,0.30863244]
[1740031193101,1.68799318,649.94,648.02,0.30863244]
[1740031193306,1.68799791,649.93,648.02,0.30863244]
[1740031193501,1.68800265,649.92,648.02,0.30863244]
[1740031193707,1.68800738,649.91,648.02,0.30863244]
[1740031193907,1.68801212,649.9,648.02,0.30863244]
[1740031194110,1.40498452,649.89,648.02,0.30863244]
[1740031194310,1.37982429,649.88,648.02,0.30863244]
[1740031194614,1.09677868,649.87,648.02,0.30863244]
[1740031194808,1.40453727,649.86,648.02,0.30863244]
[1740031195006,1.68758761,649.85,648.02,0.30863244]
[1740031195205,1.14278464,650.19,648.02,0.30863244]
[1740031195206,1.68759235,649.84,648.02,0.30863244]
[1740031195407,1.68759709,649.83,648.02,0.30863244]
[1740031195608,1.68760182,649.82,648.02,0.30863244]
[1740031195805,1.14278464,650.17,648.02,0.30863244]
[1740031195806,1.68760656,649.81,648.02,0.30863244]
[1740031196113,1.6876113,649.8,648.02,0.30863244]
[1740031196312,1.68761603,649.79,648.02,0.30863244]
[1740031196613,1.68762077,649.78,648.02,0.30863244]
[1740031196809,0.59084683,649.77,648.02,0.30863244]
[1740031197015,0.59085156,649.76,648.02,0.30863244]
[1740031197209,0.28304561,649.75,648.02,0.30863244]
[1740031197412,0.5908563,649.75,648.02,0.30863244]
[1740031197615,1.37987394,649.74,648.02,0.30863244]
[1740031197810,1.37987394,649.73,648.02,0.30863244]
[1740031198019,1.37987868,649.72,648.02,0.30863244]
[1740031198316,1.37990025,649.71,648.02,0.30863244]
[1740031198517,1.37990025,649.7,648.02,0.30863244]
[1740031198708,1.37990025,649.69,648.02,0.30863244]
[1740031198916,1.40469376,649.68,648.02,0.30863244]
[1740031199214,1.4046985,649.67,648.02,0.30863244]
[1740031199415,1.40470323,649.66,648.02,0.30863244]
[1740031199614,1.40470797,649.65,648.02,0.30863244]
[1740031199816,1.40471271,649.64,648.02,0.30863244]
[1740031200011,1.0968499,649.63,648.02,0.30863244]
[1740031200211,1.0968499,649.62,648.02,0.30863244]
[1740031200413,1.0968499,649.61,648.02,0.30863244]
[1740031200618,1.0968499,649.6,648.02,0.30863244]
[1740031200809,1.0968499,649.59,648.02,0.30863244]
[1740031201010,1.0968499,649.58,648.02,0.30863244]
[1740031201210,1.0968499,649.57,648.02,0.30863244]
[1740031201414,1.0968499,649.56,648.02,0.30863244]
[1740031201615,0.30786281,649.64,648.02,0.30863244]
[1740031201616,1.0968499,649.55,648.02,0.30863244]
[1740031201812,1.0968499,649.54,648.02,0.30863244]
[1740031202016,0.30786281,649.64,648.02,0.30863244]
[1740031203018,1.09713038,649.63,648.02,0.30863244]
[1740031203319,1.09713038,649.62,648.02,0.30863244]
[1740031203618,1.09713038,649.61,648.02,0.30863244]
[1740031203820,1.09713038,649.6,648.02,0.30863244]
[1740031204113,1.09713038,649.59,648.02,0.30863244]
[1740031204318,1.09713038,649.58,648.02,0.30863244]
[1740031204519,1.09713038,649.57,648.02,0.30863244]
[1740031204815,1.09713038,649.56,648.02,0.30863244]
[1740031205018,1.09713038,649.55,648.02,0.30863244]
[1740031205218,1.09713038,649.54,648.02,0.30863244]
[1740031205419,1.09713038,649.53,648.02,0.30863244]
[1740031205617,1.09713038,649.52,648.02,0.30863244]
[1740031205817,1.09713038,649.51,648.02,0.30863244]
[1740031206017,1.09713038,649.5,648.02,0.30863244]
[1740031206220,1.09713038,649.49,648.02,0.30863244]
[1740031206519,1.09713038,649.48,648.02,0.30863244]
[1740031206715,0.30786281,649.64,648.02,0.30863244]
[1740031206716,1.09713038,649.47,648.02,0.30863244]
[1740031206922,1.09713038,649.46,648.02,0.30863244]
[1740031207118,1.09713038,649.45,648.02,0.30863244]
[1740031207319,1.09713038,649.44,648.02,0.30863244]
[1740031207619,1.09713038,649.43,648.02,0.30863244]
[1740031207919,1.09713038,649.42,648.02,0.30863244]
[1740031208117,1.09713038,649.41,648.02,0.30863244]
[1740031208318,1.09713038,649.4,648.02,0.30863244]
[1740031208521,1.09713038,649.39,648.02,0.30863244]
[1740031208719,1.09713038,649.38,648.02,0.30863244]
[1740031209019,1.09713038,649.37,648.02,0.30863244]
[1740031209215,1.09713038,649.36,648.02,0.30863244]
[1740031209416,1.09713038,649.35,648.02,0.30863244]
[1740031209620,1.09713038,649.34,648.02,0.30863244]
[1740031209821,1.09713038,649.33,648.02,0.30863244]
[1740031210120,1.09713038,649.32,648.02,0.30863244]
[1740031210320,1.09713038,649.31,648.02,0.30863244]
[1740031210529,0.30786281,649.64,648.02,0.30863244]
[1740031210530,1.09713038,649.3,648.02,0.30863244]
[1740031210714,1.09713038,649.29,648.02,0.30863244]
[1740031210917,1.09713038,649.28,648.02,0.30863244]
[1740031211224,1.09713038,649.27,648.02,0.30863244]
[1740031211522,1.09713038,649.26,648.02,0.30863244]
[1740031211718,0.30786281,649.64,648.02,0.30863244]
[1740031211719,1.09713038,649.25,648.02,0.30863244]
[1740031212024,1.09713038,649.24,648.02,0.30863244]
[1740031212222,1.09713038,649.23,648.02,0.30863244]
[1740031212518,1.09713038,649.22,648.02,0.30863244]
[1740031212724,1.09713038,649.21,648.02,0.30863244]
[1740031212919,0.30786281,649.64,648.02,0.30863244]
[1740031212920,1.09713038,649.2,648.02,0.30863244]
[1740031213121,1.09713038,649.19,648.02,0.30863244]
[1740031213319,1.09713038,649.18,648.02,0.30863244]
[1740031213523,0.30786281,649.64,648.02,0.30863244]
[1740031213524,1.09713038,649.17,648.02,0.30863244]
[1740031213725,1.09713038,649.16,648.02,0.30863244]
[1740031214027,1.09713038,649.15,648.02,0.30863244]
[1740031214325,1.09713038,649.14,648.02,0.30863244]
[1740031214526,1.09713038,649.13,648.02,0.30863244]
[1740031214826,1.09713038,649.12,648.02,0.30863244]
[1740031215026,1.09713038,649.11,648.02,0.30863244]
[1740031215227,1.09713038,649.1,648.02,0.30863244]
[1740031215527,1.09713038,649.09,648.02,0.30863244]
[1740031215827,1.09713038,649.08,648.02,0.30863244]
[1740031216029,1.09713038,649.07,648.02,0.30863244]
[1740031216228,1.09713038,649.06,648.02,0.30863244]
[1740031216530,1.09713038,649.05,648.02,0.30863244]
[1740031216724,1.09713038,649.04,648.02,0.30863244]
[1740031216920,1.09713038,649.03,648.02,0.30863244]
[1740031217125,1.09713038,649.02,648.02,0.30863244]
[1740031217327,1.09713038,649.01,648.02,0.30863244]
[1740031217527,1.09713038,649.0,648.02,0.30863244]
[1740031217727,1.09713038,648.99,648.02,0.30863244]
[1740031217929,1.09713038,648.98,648.02,0.30863244]
[1740031218128,1.09713038,648.97,648.02,0.30863244]
[1740031218325,1.09713038,648.96,648.02,0.30863244]
[1740031218531,0.30786281,649.64,648.02,0.30863244]
[1740031218532,1.09713038,648.95,648.02,0.30863244]
[1740031218731,1.09713038,648.94,648.02,0.30863244]
[1740031218926,1.09713038,648.93,648.02,0.30863244]
[1740031219130,1.09713038,648.92,648.02,0.30863244]
[1740031219332,1.09713038,648.91,648.02,0.30863244]
[1740031219634,1.09713038,648.9,648.02,0.30863244]
[1740031219827,1.09786472,648.89,648.02,0.30863244]
[1740031220028,1.09786472,648.88,648.02,0.30863244]
[1740031220228,1.09786472,648.87,648.02,0.30863244]
[1740031220436,1.09786472,648.86,648.02,0.30863244]
[1740031220632,1.09786472,648.85,648.02,0.30863244]
[1740031220838,1.09786472,648.84,648.02,0.30863244]
[1740031221028,1.09786472,648.83,648.02,0.30863244]
[1740031221228,1.09786472,648.82,648.02,0.30863244]
[1740031221436,1.09786472,648.81,648.02,0.30863244]
[1740031221631,1.09786472,648.8,648.02,0.30863244]
[1740031221833,1.09786472,648.79,648.02,0.30863244]
[1740031222131,1.09786472,648.78,648.02,0.30863244]
[1740031222334,1.09786472,648.77,648.02,0.30863244]
[1740031222534,1.09745154,648.76,648.02,0.30863244]
[1740031222736,0.30786281,649.64,648.02,0.30863244]
[1740031222934,1.38064605,649.63,648.02,0.30863244]
[1740031223130,1.68851154,649.62,648.02,0.30863244]
[1740031223333,1.68851628,649.61,648.02,0.30863244]
[1740031223536,1.68852102,649.6,648.02,0.30863244]
[1740031223730,1.38064004,649.59,648.02,0.30863244]
[1740031223930,1.68853129,649.58,648.02,0.30863244]
[1740031224130,1.68853603,649.57,648.02,0.30863244]
[1740031224337,0.75404816,650.25,648.02,0.30863244]
[1740031224338,1.68854077,649.56,648.02,0.30863244]
[1740031224535,1.68854551,649.55,648.02,0.30863244]
[1740031224735,1.68855025,649.54,648.02,0.30863244]
[1740031224935,1.40537643,649.53,648.02,0.30863244]
[1740031225232,1.40538117,649.52,648.02,0.30863244]
[1740031225437,1.40538591,649.51,648.02,0.30863244]
[1740031225637,1.68856936,649.5,648.02,0.30863244]
[1740031225836,1.6885741,649.49,648.02,0.30863244]
[1740031226037,1.38064019,649.48,648.02,0.30863244]
[1740031226238,1.38064019,649.47,648.02,0.30863244]
[1740031226434,1.68858833,649.46,648.02,0.30863244]
[1740031226639,1.68859307,649.45,648.02,0.30863244]
[1740031226831,1.68859781,649.44,648.02,0.30863244]
[1740031227033,1.68860255,649.43,648.02,0.30863244]
[1740031227233,1.38064234,649.42,648.02,0.30863244]
[1740031227433,1.38064234,649.41,648.02,0.30863244]
[1740031227637,1.38064234,649.4,648.02,0.30863244]
[1740031227834,1.38064234,649.39,648.02,0.30863244]
[1740031228039,1.3804351,649.38,648.02,0.30863244]
[1740031228340,1.3804351,649.37,648.02,0.30863244]
[1740031228541,1.3804351,649.36,648.02,0.30863244]
[1740031228740,1.3804351,649.35,648.02,0.30863244]
[1740031228937,1.3804351,649.34,648.02,0.30863244]
[1740031229137,1.3804351,649.33,648.02,0.30863244]
[1740031229341,1.3804351,649.32,648.02,0.30863244]
[1740031229543,1.09725424,649.31,648.02,0.30863244]